[Event "Early-Titled-Tuesday-Blitz-September-05-2023"]
[Site "Chess.com"]
[Date "2023.09.05"]
[Round "3"]
[White "Gauravthegm"]
[Black "The_Princess_Moon"]
[Result "0-1"]
[WhiteElo "2419"]
[BlackElo "2264"]
[TimeControl "180+1"]
[EndTime "8:29:17 PDT"]
[Termination "The_Princess_Moon won by resignation"]

1. e4 {[%clk 0:03:00.9]} 1... c5 {[%clk 0:03:00.9]} 2. Nc3 {[%clk 0:02:57.1]}
2... a6 {[%clk 0:03:00.6]} 3. g3 {[%clk 0:02:53.4]} 3... b5 {[%clk 0:03:00]} 4.
Bg2 {[%clk 0:02:53.9]} 4... Bb7 {[%clk 0:02:59.5]} 5. d3 {[%clk 0:02:53.8]} 5...
b4 {[%clk 0:02:59.1]} 6. Nce2 {[%clk 0:02:53.3]} 6... d5 {[%clk 0:02:58.9]} 7.
e5 {[%clk 0:02:50.3]} 7... Qc7 {[%clk 0:02:55.4]} 8. f4 {[%clk 0:02:50.4]} 8...
e6 {[%clk 0:02:54.9]} 9. Nf3 {[%clk 0:02:49.2]} 9... Nc6 {[%clk 0:02:54.3]} 10.
O-O {[%clk 0:02:49]} 10... h5 {[%clk 0:02:53.3]} 11. Be3 {[%clk 0:02:45.7]}
11... d4 {[%clk 0:02:52.2]} 12. Bf2 {[%clk 0:02:45.4]} 12... Nh6 {[%clk
0:02:52.5]} 13. h3 {[%clk 0:02:44.8]} 13... Nf5 {[%clk 0:02:51.3]} 14. Nd2
{[%clk 0:02:41.5]} 14... Be7 {[%clk 0:02:35.5]} 15. Ne4 {[%clk 0:02:37.2]} 15...
Rd8 {[%clk 0:02:28.1]} 16. Qd2 {[%clk 0:02:36.2]} 16... g6 {[%clk 0:02:17.6]}
17. b3 {[%clk 0:02:30.7]} 17... Kf8 {[%clk 0:02:13.6]} 18. a3 {[%clk 0:02:29.2]}
18... a5 {[%clk 0:02:12.4]} 19. axb4 {[%clk 0:02:29.2]} 19... cxb4 {[%clk
0:02:05.7]} 20. Ra2 {[%clk 0:02:21.2]} 20... Kg7 {[%clk 0:01:59.8]} 21. Kh2
{[%clk 0:02:02.8]} 21... Qb6 {[%clk 0:01:52.5]} 22. Kg1 {[%clk 0:01:53.5]} 22...
Ne3 {[%clk 0:01:51.2]} 23. Bxe3 {[%clk 0:01:43.8]} 23... dxe3 {[%clk 0:01:52.1]}
24. Qc1 {[%clk 0:01:43.2]} 24... Nd4 {[%clk 0:01:46.3]} 25. Nxd4 {[%clk
0:01:39.3]} 25... Qxd4 {[%clk 0:01:40]} 26. Kh2 {[%clk 0:01:39.5]} 26... e2
{[%clk 0:01:29.3]} 27. Re1 {[%clk 0:01:38]} 27... Bxe4 {[%clk 0:01:23.2]} 28.
Bxe4 {[%clk 0:01:27.7]} 28... Qf2+ {[%clk 0:01:20.2]} 29. Bg2 {[%clk 0:01:28]}
29... h4 {[%clk 0:01:19.3]} 30. g4 {[%clk 0:01:27.4]} 30... Bc5 {[%clk
0:00:58.2]} 31. Qd2 {[%clk 0:01:15]} 31... Be3 {[%clk 0:00:57.1]} 32. Qxe2
{[%clk 0:01:13.5]} 32... Bxf4+ {[%clk 0:00:55.3]} 33. Kh1 {[%clk 0:01:13.3]}
33... Qg3 {[%clk 0:00:54.5]} 34. Bf1 {[%clk 0:01:04.5]} 34... Rd5 {[%clk
0:00:49.3]} 35. d4 {[%clk 0:00:54.5]} 35... Rxd4 {[%clk 0:00:45.1]} 36. c4
{[%clk 0:00:46.3]} 36... bxc3 {[%clk 0:00:42.7]} 37. Rd1 {[%clk 0:00:41.6]}
37... Rd2 {[%clk 0:00:37.4]} 38. Raxd2 {[%clk 0:00:37.6]} 38... cxd2 {[%clk
0:00:38.3]} 39. Qg2 {[%clk 0:00:34.3]} 39... Qxb3 {[%clk 0:00:34.7]} 40. Be2
{[%clk 0:00:32.5]} 40... Rc8 {[%clk 0:00:32.4]} 41. Qf1 {[%clk 0:00:30.1]} 41...
Rc1 {[%clk 0:00:29.1]} 42. Qxf4 {[%clk 0:00:26.2]} 42... Rxd1+ {[%clk
0:00:28.8]} 43. Kg2 {[%clk 0:00:26.6]} 43... Qd5+ {[%clk 0:00:13.6]} 44. Bf3
{[%clk 0:00:26.1]} 44... Rg1+ {[%clk 0:00:10.4]} 45. Kxg1 {[%clk 0:00:25.2]}
45... d1=Q+ {[%clk 0:00:10.1]} 46. Bxd1 {[%clk 0:00:25.5]} 46... Qxd1+ {[%clk
0:00:11]} 47. Kg2 {[%clk 0:00:25]} 47... Qe2+ {[%clk 0:00:10.1]} 48. Kg1 {[%clk
0:00:24.5]} 48... Qd1+ {[%clk 0:00:10]} 49. Kg2 {[%clk 0:00:24.8]} 49... a4
{[%clk 0:00:10]} 50. Qf6+ {[%clk 0:00:24.6]} 50... Kg8 {[%clk 0:00:10.4]} 51.
Qxh4 {[%clk 0:00:20.9]} 51... a3 {[%clk 0:00:09.6]} 52. Qe7 {[%clk 0:00:17.3]}
52... Qd5+ {[%clk 0:00:10.5]} 53. Kf2 {[%clk 0:00:16.3]} 53... a2 {[%clk
0:00:10.1]} 54. Qe8+ {[%clk 0:00:16]} 54... Kg7 {[%clk 0:00:10.2]} 55. Qa4
{[%clk 0:00:15.7]} 55... Qd3 {[%clk 0:00:08.7]} 56. Qxa2 {[%clk 0:00:15.6]}
56... Qd4+ {[%clk 0:00:08.3]} 57. Kg2 {[%clk 0:00:14.6]} 57... Qxe5 {[%clk
0:00:08.6]} 58. Qf2 {[%clk 0:00:14.5]} 58... Qe4+ {[%clk 0:00:08.5]} 59. Kg3
{[%clk 0:00:14]} 59... e5 {[%clk 0:00:08.7]} 60. Qb2 {[%clk 0:00:12.6]} 60...
Qe3+ {[%clk 0:00:08.6]} 61. Kg2 {[%clk 0:00:12.6]} 61... Qf4 {[%clk 0:00:08.8]}
62. Qe2 {[%clk 0:00:11.4]} 62... e4 {[%clk 0:00:08.6]} 63. Qb2+ {[%clk
0:00:11.4]} 63... Kh7 {[%clk 0:00:09]} 64. Qd4 {[%clk 0:00:10.6]} 64... Qf3+
{[%clk 0:00:09.1]} 65. Kh2 {[%clk 0:00:10]} 65... e3 {[%clk 0:00:09.3]} 66. Qd3
{[%clk 0:00:07.6]} 66... Qf2+ {[%clk 0:00:07.6]} 67. Kh1 {[%clk 0:00:07.9]}
67... e2 {[%clk 0:00:07.1]} 0-1

[Event "Early-Titled-Tuesday-Blitz-September-05-2023"]
[Site "Chess.com"]
[Date "2023.09.05"]
[Round "3"]
[White "hurricane7791"]
[Black "GMWSO"]
[Result "1/2-1/2"]
[WhiteElo "2694"]
[BlackElo "3062"]
[TimeControl "180+1"]
[EndTime "8:29:26 PDT"]
[Termination "Game drawn by repetition"]

1. d4 {[%clk 0:02:58.9]} 1... e6 {[%clk 0:02:59.7]} 2. c4 {[%clk 0:02:58.6]}
2... d5 {[%clk 0:02:59.6]} 3. Nc3 {[%clk 0:02:58.3]} 3... Nf6 {[%clk 0:03:00]}
4. cxd5 {[%clk 0:02:58.3]} 4... exd5 {[%clk 0:03:00.9]} 5. Bg5 {[%clk
0:02:58.5]} 5... c6 {[%clk 0:03:01.6]} 6. e3 {[%clk 0:02:58.9]} 6... h6 {[%clk
0:03:00.4]} 7. Bh4 {[%clk 0:02:58.9]} 7... Be7 {[%clk 0:03:01]} 8. Bd3 {[%clk
0:02:59.4]} 8... O-O {[%clk 0:03:01.6]} 9. Qc2 {[%clk 0:03:00]} 9... Re8 {[%clk
0:03:01.7]} 10. Nf3 {[%clk 0:03:00.5]} 10... Ne4 {[%clk 0:02:56.3]} 11. Bxe4
{[%clk 0:03:00.6]} 11... Bxh4 {[%clk 0:02:55]} 12. Bh7+ {[%clk 0:03:01.2]} 12...
Kh8 {[%clk 0:02:55.4]} 13. Bf5 {[%clk 0:02:57.4]} 13... Rxe3+ {[%clk 0:02:44.3]}
14. Kf1 {[%clk 0:02:54]} 14... Rxf3 {[%clk 0:02:35.8]} 15. gxf3 {[%clk
0:02:51.5]} 15... Bf6 {[%clk 0:02:29.1]} 16. Bxc8 {[%clk 0:02:38]} 16... Qxc8
{[%clk 0:02:30]} 17. Kg2 {[%clk 0:02:27.1]} 17... Nd7 {[%clk 0:02:21.7]} 18.
Rad1 {[%clk 0:02:26.8]} 18... Nf8 {[%clk 0:02:21]} 19. Rhe1 {[%clk 0:02:25.2]}
19... Ng6 {[%clk 0:02:17.4]} 20. Re3 {[%clk 0:02:13.3]} 20... Bg5 {[%clk
0:02:13.3]} 21. Rde1 {[%clk 0:01:46]} 21... Nh4+ {[%clk 0:02:06.3]} 22. Kg3
{[%clk 0:01:42]} 22... Qc7+ {[%clk 0:01:59.8]} 23. Re5 {[%clk 0:01:40.6]} 23...
Ng6 {[%clk 0:01:41.8]} 24. Nxd5 {[%clk 0:01:37.7]} 24... Qd6 {[%clk 0:01:41.1]}
25. Nc3 {[%clk 0:01:25.5]} 25... Bf4+ {[%clk 0:01:25.4]} 26. Kg2 {[%clk
0:01:23.9]} 26... Nxe5 {[%clk 0:01:17.6]} 27. dxe5 {[%clk 0:01:18.5]} 27... Bxe5
{[%clk 0:01:18.5]} 28. Rd1 {[%clk 0:01:14.4]} 28... Qe7 {[%clk 0:01:13.2]} 29.
Qf5 {[%clk 0:01:10.7]} 29... Bxc3 {[%clk 0:00:20]} 30. bxc3 {[%clk 0:01:08]}
30... Rd8 {[%clk 0:00:20]} 31. Rxd8+ {[%clk 0:01:01.9]} 31... Qxd8 {[%clk
0:00:20.9]} 32. Qxf7 {[%clk 0:01:02.3]} 32... Qg5+ {[%clk 0:00:19.8]} 33. Kf1
{[%clk 0:01:00.8]} 33... Qb5+ {[%clk 0:00:11.9]} 34. Kg2 {[%clk 0:00:58.5]}
34... Qg5+ {[%clk 0:00:11.5]} 35. Kf1 {[%clk 0:00:58.7]} 35... Qc1+ {[%clk
0:00:09.8]} 36. Kg2 {[%clk 0:00:58.7]} 36... Qxc3 {[%clk 0:00:10.4]} 37. Qxb7
{[%clk 0:00:54.1]} 37... Qc5 {[%clk 0:00:06.2]} 38. h4 {[%clk 0:00:49.9]} 38...
Kh7 {[%clk 0:00:05.7]} 39. Qd7 {[%clk 0:00:47]} 39... Qd5 {[%clk 0:00:05.4]} 40.
Qxa7 {[%clk 0:00:46.9]} 40... c5 {[%clk 0:00:05.5]} 41. Qa5 {[%clk 0:00:40.7]}
41... Qc6 {[%clk 0:00:05.4]} 42. Qc3 {[%clk 0:00:39.2]} 42... Qg6+ {[%clk
0:00:05.5]} 43. Kh2 {[%clk 0:00:35.1]} 43... Qd6+ {[%clk 0:00:05.3]} 44. Kg2
{[%clk 0:00:35.6]} 44... Qg6+ {[%clk 0:00:05.8]} 45. Kh2 {[%clk 0:00:35.6]}
45... Qf5 {[%clk 0:00:06]} 46. a4 {[%clk 0:00:31.4]} 46... Qf4+ {[%clk
0:00:05.8]} 47. Kg2 {[%clk 0:00:32]} 47... Qxa4 {[%clk 0:00:05.2]} 48. Qxc5
{[%clk 0:00:30.6]} 48... Qxh4 {[%clk 0:00:05.9]} 49. Qf5+ {[%clk 0:00:31]} 49...
Kg8 {[%clk 0:00:05.8]} 50. Qc8+ {[%clk 0:00:26.5]} 50... Kf7 {[%clk 0:00:06.2]}
51. Qd7+ {[%clk 0:00:26.8]} 51... Qe7 {[%clk 0:00:06.2]} 52. Qf5+ {[%clk
0:00:27.5]} 52... Qf6 {[%clk 0:00:06.6]} 53. Qd7+ {[%clk 0:00:28.1]} 53... Kg6
{[%clk 0:00:06.7]} 54. Qe8+ {[%clk 0:00:26]} 54... Kh7 {[%clk 0:00:05.8]} 55.
Qe3 {[%clk 0:00:24.4]} 55... Qg6+ {[%clk 0:00:05.6]} 56. Kh2 {[%clk 0:00:24.5]}
56... h5 {[%clk 0:00:04.7]} 57. Qe4 {[%clk 0:00:22.4]} 57... Kh6 {[%clk
0:00:04.4]} 58. Qf4+ {[%clk 0:00:22.2]} 58... Qg5 {[%clk 0:00:04.4]} 59. Qd6+
{[%clk 0:00:22.3]} 59... Qf6 {[%clk 0:00:04.7]} 60. Qd2+ {[%clk 0:00:21.4]}
60... Kg6 {[%clk 0:00:04.8]} 61. Qe3 {[%clk 0:00:21.3]} 61... Qf5 {[%clk
0:00:03.3]} 62. Kg2 {[%clk 0:00:21.2]} 62... Qg5+ {[%clk 0:00:03.2]} 63. Kh3
{[%clk 0:00:20.4]} 63... Qf5+ {[%clk 0:00:03.3]} 64. Kg2 {[%clk 0:00:20.6]}
64... Kf7 {[%clk 0:00:02.3]} 65. Qa7+ {[%clk 0:00:20.3]} 65... Kf6 {[%clk
0:00:02]} 66. Qe3 {[%clk 0:00:21.2]} 66... Kg6 {[%clk 0:00:02.3]} 67. Qe8+
{[%clk 0:00:20.9]} 67... Qf7 {[%clk 0:00:02.5]} 68. Qe3 {[%clk 0:00:21.8]} 68...
Qf6 {[%clk 0:00:02.8]} 69. Qe8+ {[%clk 0:00:21.9]} 69... Kh6 {[%clk 0:00:03.7]}
70. Qe3+ {[%clk 0:00:22.5]} 70... Qg5+ {[%clk 0:00:03.9]} 71. Kh3 {[%clk
0:00:23.1]} 71... Kg6 {[%clk 0:00:03.1]} 72. Qe8+ {[%clk 0:00:21.9]} 72... Kf6
{[%clk 0:00:03]} 73. Qd8+ {[%clk 0:00:21.7]} 73... Kg6 {[%clk 0:00:03.3]} 74.
Qe8+ {[%clk 0:00:22.1]} 74... Kh7 {[%clk 0:00:03.8]} 75. Qe4+ {[%clk 0:00:22.4]}
75... g6 {[%clk 0:00:04.4]} 76. Qb7+ {[%clk 0:00:22.1]} 76... Kh6 {[%clk
0:00:04.6]} 77. Qe4 {[%clk 0:00:22.6]} 77... Qf5+ {[%clk 0:00:05.5]} 78. Kg3
{[%clk 0:00:22.1]} 78... Qf6 {[%clk 0:00:05.5]} 79. Qe3+ {[%clk 0:00:22.3]}
79... Qg5+ {[%clk 0:00:05.4]} 80. Kh3 {[%clk 0:00:22.5]} 80... Qxe3 {[%clk
0:00:05.3]} 81. fxe3 {[%clk 0:00:23.4]} 81... Kg5 {[%clk 0:00:04.4]} 82. Kg3
{[%clk 0:00:22.1]} 82... Kf5 {[%clk 0:00:02.7]} 83. e4+ {[%clk 0:00:18.3]} 83...
Kg5 {[%clk 0:00:01.9]} 84. f4+ {[%clk 0:00:18.2]} 84... Kf6 {[%clk 0:00:01.5]}
85. Kh4 {[%clk 0:00:18.3]} 85... Ke6 {[%clk 0:00:01.2]} 86. Kg5 {[%clk
0:00:18.9]} 86... Kf7 {[%clk 0:00:01.9]} 87. f5 {[%clk 0:00:18.1]} 87... gxf5
{[%clk 0:00:02.8]} 88. exf5 {[%clk 0:00:18.3]} 88... h4 {[%clk 0:00:02.9]} 89.
Kxh4 {[%clk 0:00:18.8]} 89... Kf6 {[%clk 0:00:03.8]} 90. Kg4 {[%clk 0:00:19.4]}
90... Kf7 {[%clk 0:00:04.7]} 91. Kg5 {[%clk 0:00:20.1]} 91... Kg7 {[%clk
0:00:05.2]} 92. Kf4 {[%clk 0:00:19.4]} 92... Kf7 {[%clk 0:00:06.1]} 93. Ke5
{[%clk 0:00:20.3]} 93... Ke7 {[%clk 0:00:06.4]} 94. f6+ {[%clk 0:00:21.2]} 94...
Kf7 {[%clk 0:00:07.3]} 95. Kf5 {[%clk 0:00:22]} 95... Kf8 {[%clk 0:00:07.8]} 96.
Ke5 {[%clk 0:00:22.7]} 96... Kf7 {[%clk 0:00:08]} 97. Kf5 {[%clk 0:00:23.1]}
97... Kf8 {[%clk 0:00:08.7]} 98. Ke5 {[%clk 0:00:24]} 98... Kf7 {[%clk
0:00:09.4]} 1/2-1/2

[Event "Early-Titled-Tuesday-Blitz-September-05-2023"]
[Site "Chess.com"]
[Date "2023.09.05"]
[Round "3"]
[White "amintabatabaei"]
[Black "PeshkaCh"]
[Result "1/2-1/2"]
[WhiteElo "3011"]
[BlackElo "2795"]
[TimeControl "180+1"]
[EndTime "8:29:36 PDT"]
[Termination "Game drawn - insufficient material"]

1. c4 {[%clk 0:03:00]} 1... e5 {[%clk 0:03:00]} 2. Nf3 {[%clk 0:02:59.6]} 2...
Nc6 {[%clk 0:02:59.9]} 3. g3 {[%clk 0:02:59.4]} 3... Nf6 {[%clk 0:03:00.2]} 4.
Bg2 {[%clk 0:02:59.5]} 4... d5 {[%clk 0:03:00.9]} 5. cxd5 {[%clk 0:03:00]} 5...
Nxd5 {[%clk 0:03:01.8]} 6. O-O {[%clk 0:03:00.6]} 6... Be6 {[%clk 0:03:02.4]} 7.
d4 {[%clk 0:03:00.2]} 7... exd4 {[%clk 0:02:59.5]} 8. Nxd4 {[%clk 0:03:01.1]}
8... Nxd4 {[%clk 0:03:00.4]} 9. Qxd4 {[%clk 0:03:01.6]} 9... c6 {[%clk
0:03:01.1]} 10. Nc3 {[%clk 0:02:09.4]} 10... Qf6 {[%clk 0:02:59.1]} 11. Qa4
{[%clk 0:02:00.4]} 11... Nb6 {[%clk 0:02:22.3]} 12. Qc2 {[%clk 0:02:00.5]} 12...
Bb4 {[%clk 0:02:16.7]} 13. Ne4 {[%clk 0:01:55.3]} 13... Qg6 {[%clk 0:02:16.5]}
14. Be3 {[%clk 0:01:41]} 14... O-O {[%clk 0:02:15.9]} 15. Bc5 {[%clk 0:01:41.7]}
15... Bxc5 {[%clk 0:02:11.2]} 16. Qxc5 {[%clk 0:01:42.6]} 16... Bd5 {[%clk
0:02:11.5]} 17. Nc3 {[%clk 0:01:39.8]} 17... Bxg2 {[%clk 0:02:10.9]} 18. Kxg2
{[%clk 0:01:40.7]} 18... Qc2 {[%clk 0:02:08.9]} 19. Rab1 {[%clk 0:01:36.5]}
19... Na4 {[%clk 0:02:04.8]} 20. Nxa4 {[%clk 0:01:35.1]} 20... Qxa4 {[%clk
0:02:05.7]} 21. a3 {[%clk 0:01:32.4]} 21... Qe4+ {[%clk 0:02:05.6]} 22. Kg1
{[%clk 0:01:32.3]} 22... Qxe2 {[%clk 0:02:06.3]} 23. Rfe1 {[%clk 0:01:32.9]}
23... Qd3 {[%clk 0:01:54.2]} 24. Rbd1 {[%clk 0:01:32.4]} 24... Qb3 {[%clk
0:01:54.8]} 25. Rd2 {[%clk 0:01:27.1]} 25... h6 {[%clk 0:01:43.6]} 26. Re3
{[%clk 0:01:26.8]} 26... Qa2 {[%clk 0:01:39.5]} 27. Re7 {[%clk 0:01:21.9]} 27...
Qb3 {[%clk 0:01:29.7]} 28. Rdd7 {[%clk 0:01:21.5]} 28... Qxb2 {[%clk 0:01:00.4]}
29. Rxb7 {[%clk 0:01:21.4]} 29... Qa1+ {[%clk 0:01:01.1]} 30. Kg2 {[%clk
0:01:21.8]} 30... a5 {[%clk 0:01:01.5]} 31. h4 {[%clk 0:01:16.9]} 31... a4
{[%clk 0:00:55]} 32. Qc4 {[%clk 0:01:14.5]} 32... Qf6 {[%clk 0:00:53.9]} 33.
Rbc7 {[%clk 0:01:12.3]} 33... g6 {[%clk 0:00:37]} 34. Re3 {[%clk 0:00:58.3]}
34... Rac8 {[%clk 0:00:30.9]} 35. Rxc8 {[%clk 0:00:54.7]} 35... Rxc8 {[%clk
0:00:31.8]} 36. Qxa4 {[%clk 0:00:54.7]} 36... c5 {[%clk 0:00:31]} 37. Qd7 {[%clk
0:00:46.5]} 37... Rd8 {[%clk 0:00:20.3]} 38. Qc7 {[%clk 0:00:41.3]} 38... Qd4
{[%clk 0:00:20.4]} 39. a4 {[%clk 0:00:33.4]} 39... Qd5+ {[%clk 0:00:16.7]} 40.
Kh2 {[%clk 0:00:32.6]} 40... Ra8 {[%clk 0:00:13.2]} 41. Re5 {[%clk 0:00:32.6]}
41... Qa2 {[%clk 0:00:09.9]} 42. Qxc5 {[%clk 0:00:29.3]} 42... Qxa4 {[%clk
0:00:08.7]} 43. h5 {[%clk 0:00:29.9]} 43... g5 {[%clk 0:00:04.7]} 44. Qd6 {[%clk
0:00:23.6]} 44... Qa2 {[%clk 0:00:02.8]} 45. Rf5 {[%clk 0:00:21.7]} 45... Qe6
{[%clk 0:00:02.6]} 46. Qxe6 {[%clk 0:00:22.3]} 46... fxe6 {[%clk 0:00:03.5]} 47.
Rf6 {[%clk 0:00:23]} 47... Kg7 {[%clk 0:00:03.6]} 48. Rg6+ {[%clk 0:00:23.5]}
48... Kh7 {[%clk 0:00:03.9]} 49. Rxe6 {[%clk 0:00:24.1]} 49... Rf8 {[%clk
0:00:04.6]} 50. Re7+ {[%clk 0:00:23.5]} 50... Kg8 {[%clk 0:00:04.6]} 51. Kg2
{[%clk 0:00:23.9]} 51... Ra8 {[%clk 0:00:04.8]} 52. Kh3 {[%clk 0:00:23.3]} 52...
Ra4 {[%clk 0:00:04.9]} 53. Rc7 {[%clk 0:00:21.9]} 53... Rb4 {[%clk 0:00:04.9]}
54. Ra7 {[%clk 0:00:22.1]} 54... Rc4 {[%clk 0:00:04.8]} 55. f3 {[%clk
0:00:19.8]} 55... Rb4 {[%clk 0:00:04.9]} 56. Rc7 {[%clk 0:00:19.9]} 56... Ra4
{[%clk 0:00:05.2]} 57. Rd7 {[%clk 0:00:20.4]} 57... Rb4 {[%clk 0:00:05.6]} 58.
Rd2 {[%clk 0:00:19.1]} 58... Kg7 {[%clk 0:00:05.5]} 59. Rc2 {[%clk 0:00:19.8]}
59... Ra4 {[%clk 0:00:05.5]} 60. Rf2 {[%clk 0:00:19.8]} 60... Rb4 {[%clk
0:00:05.7]} 61. f4 {[%clk 0:00:19.3]} 61... gxf4 {[%clk 0:00:06.3]} 62. gxf4
{[%clk 0:00:20.1]} 62... Kf6 {[%clk 0:00:05.3]} 63. Kg4 {[%clk 0:00:19.4]} 63...
Rb1 {[%clk 0:00:05.2]} 64. Ra2 {[%clk 0:00:18.5]} 64... Rg1+ {[%clk 0:00:05.3]}
65. Kf3 {[%clk 0:00:19]} 65... Rf1+ {[%clk 0:00:05.7]} 66. Kg3 {[%clk
0:00:19.6]} 66... Rg1+ {[%clk 0:00:05.8]} 67. Kf2 {[%clk 0:00:20.1]} 67... Rh1
{[%clk 0:00:05.1]} 68. Ra6+ {[%clk 0:00:19.3]} 68... Kf5 {[%clk 0:00:05.2]} 69.
Kg3 {[%clk 0:00:16.5]} 69... Rg1+ {[%clk 0:00:04.4]} 70. Kh2 {[%clk 0:00:16.7]}
70... Rg8 {[%clk 0:00:03.9]} 71. Kh3 {[%clk 0:00:12.7]} 71... Kxf4 {[%clk
0:00:03.8]} 72. Kh4 {[%clk 0:00:13.4]} 72... Rg4+ {[%clk 0:00:03]} 73. Kh3
{[%clk 0:00:14.1]} 73... Rg3+ {[%clk 0:00:03.5]} 74. Kh4 {[%clk 0:00:14.6]}
74... Rg4+ {[%clk 0:00:03.8]} 75. Kh3 {[%clk 0:00:15.3]} 75... Rg3+ {[%clk
0:00:04.4]} 76. Kh2 {[%clk 0:00:16.1]} 76... Rg8 {[%clk 0:00:04.6]} 77. Rg6
{[%clk 0:00:13.2]} 77... Ra8 {[%clk 0:00:03.8]} 78. Kh3 {[%clk 0:00:13.8]} 78...
Ra3+ {[%clk 0:00:03.7]} 79. Kh4 {[%clk 0:00:13]} 79... Kf5 {[%clk 0:00:04.4]}
80. Rxh6 {[%clk 0:00:06.1]} 80... Ra4+ {[%clk 0:00:04.8]} 81. Kh3 {[%clk
0:00:06.7]} 81... Kg5 {[%clk 0:00:05.7]} 82. Rd6 {[%clk 0:00:06.7]} 82... Rh4+
{[%clk 0:00:05.8]} 83. Kg3 {[%clk 0:00:06.8]} 83... Rxh5 {[%clk 0:00:06.7]} 84.
Rc6 {[%clk 0:00:05.7]} 84... Rh1 {[%clk 0:00:06.2]} 85. Rc5+ {[%clk 0:00:05.8]}
85... Kf6 {[%clk 0:00:06.7]} 86. Rc6+ {[%clk 0:00:06.7]} 86... Kg5 {[%clk
0:00:06.8]} 87. Rc2 {[%clk 0:00:07]} 87... Rg1+ {[%clk 0:00:06.9]} 88. Rg2
{[%clk 0:00:07.9]} 88... Rxg2+ {[%clk 0:00:07.4]} 89. Kxg2 {[%clk 0:00:08.8]}
1/2-1/2